bitfinex-derivatives/quotes_ETHF0:USTF0_20250114
["timestamp","ask_amount","ask_price","bid_price","bid_amount"]
[1736869365565,3.31427489,3208.3,3208.2,40.8]
[1736869365756,0.31179,3208.4,3208.2,40.8]
[1736869365957,0.31177,3208.6,3208.3,0.31179]
[1736869366159,3.6027714,3208.3,3208.2,41.1118]
[1736869366360,3.6027714,3208.6,3208.5,0.31178]
[1736869366556,3.2078,3208.9,3208.7,0.31175]
[1736869367066,0.4612,3209.0,3208.6,3.2078]
[1736869367268,3.61001086,3208.8,3208.6,3.2078]
[1736869367569,3.61001086,3208.9,3208.6,3.2078]
[1736869367868,0.4612,3209.0,3208.4,3.28921491]
[1736869368069,3.92175086,3208.9,3208.5,0.31177]
[1736869368570,3.92175086,3208.9,3208.6,0.31176]
[1736869368869,3.92175086,3208.9,3208.4,3.28921491]
[1736869368870,3.61001086,3208.9,3208.4,3.28921491]
[1736869369169,3.92175086,3208.9,3208.6,0.31176]
[1736869369366,3.61001086,3208.9,3208.6,0.31176]
[1736869369562,3.61001086,3208.9,3208.4,3.28921491]
[1736869369563,3.61001086,3208.9,3208.8,0.31175]
[1736869370067,3.61001086,3208.9,3208.7,0.31175]
[1736869370371,3.61001086,3208.9,3208.5,3.2078]
[1736869370568,3.51949,3209.4,3208.8,3.28921491]
[1736869370772,0.3117,3209.3,3209.0,0.31172]
[1736869371074,3.252927,3209.1,3209.0,0.31173]
[1736869371279,0.31168,3209.6,3209.1,0.31172]
[1736869371483,0.31165,3209.8,3208.9,3.2078]
[1736869371782,3.25529746,3209.8,3209.5,0.31168]
[1736869371989,3.25529746,3209.8,3209.4,3.28921491]
[1736869372179,3.48265464,3210.0,3209.8,0.31164]
[1736869372483,0.80192,3210.1,3209.4,3.28921491]
[1736869372484,0.4903,3210.1,3209.4,3.28921491]
[1736869372680,3.48265464,3210.0,3209.9,0.31164]
[1736869372881,3.79429464,3210.0,3209.7,3.51945]
[1736869373082,3.48265464,3210.0,3209.9,0.31164]
[1736869373583,3.48265464,3210.0,3209.7,3.2078]
[1736869373984,3.48265464,3210.0,3209.1,44.78708]
[1736869374381,3.48265464,3210.0,3209.9,0.31164]
[1736869374874,3.79428464,3210.0,3209.9,0.31164]
[1736869375079,0.31164,3209.9,3209.8,0.31165]
[1736869375284,3.48265464,3210.0,3209.9,0.31164]
[1736869375479,3.53371194,3209.9,3209.5,3.2078]
[1736869375785,3.53371194,3210.0,3209.9,0.31164]
[1736869375992,0.4903,3210.1,3209.5,3.2078]
[1736869376180,3.30469272,3210.0,3209.7,0.31166]
[1736869376687,0.31164,3209.9,3209.7,0.31165]
[1736869376986,3.61634272,3209.8,3209.7,0.31165]
[1736869377387,0.31165,3209.8,3209.7,0.31165]
[1736869377585,0.31165,3209.8,3209.6,0.31166]
[1736869377778,3.51723878,3209.8,3209.5,3.2078]
[1736869377983,3.51723878,3209.8,3209.1,44.08921491]
[1736869377984,6.72503878,3209.8,3209.1,3.2078]
[1736869378288,0.31171,3209.2,3209.1,3.2078]
[1736869378674,3.37547785,3209.2,3209.1,3.2078]
[1736869380377,3.06376785,3209.2,3208.6,3.2078]
[1736869380584,3.2078,3209.0,3208.6,3.2078]
[1736869380775,0.31174,3208.9,3208.7,0.31175]
[1736869380980,3.8130117,3208.9,3208.8,40.8]
[1736869381586,0.31176,3208.7,3208.5,0.31177]
[1736869381775,0.31175,3208.8,3208.6,0.31176]
[1736869381980,0.31174,3208.9,3208.7,0.31176]
[1736869382174,0.4698,3209.1,3208.6,40.8]
[1736869382379,0.4698,3209.1,3208.6,44.0078]
[1736869382578,3.43163876,3208.9,3208.8,0.31175]
[1736869382784,3.43163876,3209.0,3208.6,47.29701491]
[1736869382987,3.2078,3209.4,3209.3,0.3117]
[1736869383185,0.31166,3209.7,3209.0,0.77932]
[1736869383386,0.31167,3209.6,3209.4,0.31168]
[1736869383580,3.49379729,3209.7,3209.3,3.2078]
[1736869383787,0.31169,3209.4,3209.2,0.3117]
[1736869383988,0.3117,3209.3,3209.2,0.3117]
[1736869384190,3.73431083,3209.3,3209.1,0.31171]
[1736869384386,0.3117,3209.3,3209.1,0.31171]
[1736869384584,3.2078,3209.7,3208.9,6.49701491]
[1736869384894,0.31177,3208.6,3208.4,0.31178]
[1736869385390,3.42261083,3208.5,3208.3,0.31179]
[1736869385690,3.42261083,3208.5,3208.4,0.31179]
[1736869385981,0.4939,3208.9,3208.4,44.31959]
[1736869386192,0.31169,3209.4,3209.1,0.31171]
[1736869386384,0.3117,3209.3,3209.0,0.31173]
[1736869386584,0.31171,3209.2,3208.9,3.60094491]
[1736869386883,3.40418591,3209.4,3208.8,3.2078]
[1736869387082,0.31172,3209.1,3208.8,3.51954]
[1736869387284,0.31177,3208.6,3208.5,0.2108]
[1736869387486,0.31177,3208.6,3208.4,44.0078]
[1736869387680,3.91026198,3208.6,3208.4,44.0078]
[1736869388490,3.59849198,3208.6,3208.4,44.0078]
[1736869388880,3.59849198,3208.6,3208.5,0.31178]
[1736869389078,3.59849198,3208.6,3208.4,44.0078]
[1736869389287,3.59849198,3208.6,3208.4,44.31958]
[1736869389883,3.59849198,3208.6,3208.5,0.31178]
[1736869390092,0.4939,3209.5,3208.9,0.31173]
[1736869390284,0.4939,3209.5,3208.8,3.2078]
[1736869390491,3.50814716,3208.9,3208.8,3.2078]
[1736869390792,0.31174,3208.9,3208.6,0.31176]
[1736869391089,0.31173,3209.0,3208.7,0.31175]
[1736869391283,0.31173,3209.0,3208.8,0.31175]
[1736869391494,3.52364418,3208.9,3208.8,0.31175]
[1736869391885,3.6798,3209.3,3208.8,6.49701491]
[1736869392085,3.2078,3209.3,3209.1,0.31172]
[1736869392282,3.28556166,3209.2,3209.1,0.31172]
[1736869392493,3.59727166,3209.2,3208.9,0.31173]
[1736869392690,3.28556166,3209.2,3209.0,0.31172]
[1736869393892,3.28556166,3209.2,3208.8,6.49701491]
[1736869394093,3.28556166,3209.2,3209.0,0.31172]
[1736869395596,3.28556166,3209.2,3208.8,6.49701491]
[1736869395894,3.28556166,3209.2,3209.1,0.31172]
[1736869396489,3.28556166,3209.2,3209.0,0.31172]
[1736869397598,3.28556166,3209.2,3209.1,0.31172]
[1736869397791,3.28556166,3209.2,3208.8,6.49701491]
[1736869398287,3.28556166,3209.2,3209.1,0.31172]
[1736869398491,3.28556166,3209.2,3208.8,6.49701491]
[1736869398693,0.31173,3209.0,3208.8,3.2078]
[1736869398890,0.31174,3208.9,3208.8,3.2078]
[1736869399103,3.41174776,3208.9,3208.8,3.2078]
[1736869399400,3.2078,3209.3,3208.8,3.2078]
[1736869399602,3.2078,3209.3,3208.9,2.70976663]
[1736869399793,3.88455155,3209.2,3208.9,3.02149663]
[1736869399997,3.57284155,3209.2,3209.0,0.31173]
[1736869400595,3.57284155,3209.2,3208.5,0.494]
[1736869400800,3.57284155,3209.2,3208.8,3.2078]
[1736869400991,3.57284155,3209.2,3209.1,3.02148663]
[1736869401302,0.31167,3209.6,3209.3,0.31169]
[1736869401488,0.31167,3209.6,3208.8,3.98716]
[1736869401489,0.31167,3209.6,3209.5,3.2078]
[1736869401694,3.24440379,3209.4,3209.1,3.2078]
[1736869401893,0.3117,3209.3,3209.2,40.8]
[1736869402294,3.6730131,3209.3,3209.1,3.51951]
[1736869402494,0.3117,3209.3,3209.1,3.51951]
[1736869402699,0.77918,3209.6,3209.1,3.2078]
[1736869402899,3.6730231,3209.2,3209.1,3.2078]
[1736869403202,0.31171,3209.2,3209.1,3.2078]
[1736869403402,3.90320099,3209.2,3209.1,3.2078]
[1736869404097,3.90320099,3209.2,3209.1,5.91756663]
[1736869404098,3.59149099,3209.2,3209.1,5.91756663]
[1736869404303,0.79656,3209.7,3209.5,0.31167]
[1736869404601,3.45947688,3209.6,3209.5,0.31167]
[1736869404797,3.45947688,3209.6,3209.1,6.69685663]
[1736869405105,3.45947688,3209.6,3209.5,0.31168]
[1736869405299,3.77114688,3209.6,3209.4,0.31168]
[1736869405496,0.31169,3209.4,3208.8,40.8]
[1736869405698,3.45947688,3209.6,3209.5,0.31168]
[1736869405894,0.31162,3210.1,3209.9,0.31164]
[1736869406399,4.04745791,3210.0,3209.9,0.31164]
[1736869406804,4.35908791,3210.0,3209.9,0.31164]
[1736869406997,4.04745791,3210.0,3209.9,0.31164]
[1736869407307,4.35908791,3210.0,3209.9,0.31164]
[1736869407506,4.04745791,3210.0,3209.5,3.2078]
[1736869407704,3.98692,3209.9,3209.0,5.91756663]
[1736869408007,0.31169,3209.5,3209.0,3.2078]
[1736869408298,0.31169,3209.5,3209.4,0.31168]
[1736869408299,0.31168,3209.5,3209.4,0.31168]
[1736869408691,3.29031367,3209.5,3209.2,2.70976663]
[1736869409004,0.31169,3209.4,3209.3,0.31169]
[1736869409209,0.31169,3209.4,3209.2,2.70976663]
[1736869409398,3.69597027,3209.4,3209.2,3.02146663]
[1736869409711,3.38428027,3209.4,3209.3,0.3117]
[1736869410204,0.31168,3209.5,3209.3,0.3117]
[1736869410402,3.49353375,3209.4,3209.2,2.70976663]
[1736869410597,3.49353375,3209.4,3209.3,0.3117]
[1736869410815,3.49353375,3209.6,3209.5,0.31168]
[1736869411009,0.31167,3209.6,3209.2,2.70976663]
[1736869411299,3.54330571,3209.6,3209.5,0.31168]
[1736869411695,0.31166,3209.7,3209.5,0.31168]
[1736869411896,3.2078,3210.3,3209.6,3.2078]
[1736869412099,3.2078,3210.3,3209.8,2.70976663]
[1736869412304,3.54563839,3210.2,3210.1,0.31162]
[1736869412499,3.54563839,3210.2,3210.1,40.8]
[1736869412807,3.54563839,3210.2,3210.1,41.11162]
[1736869413001,3.54563839,3210.2,3210.1,43.82138663]
[1736869413207,0.4675,3210.5,3210.4,0.31159]
[1736869413505,4.01344567,3210.5,3210.4,0.31159]
[1736869413998,4.01344567,3210.5,3210.1,44.39208988]
[1736869413999,4.32503567,3210.5,3210.3,0.3116]
[1736869414408,0.31156,3210.7,3210.4,0.31158]
[1736869414704,0.31157,3210.6,3210.4,0.31158]
[1736869415107,3.39933062,3210.5,3210.4,0.31158]
[1736869416306,3.39933062,3210.5,3210.1,40.8]
[1736869416605,3.2078,3210.8,3210.1,40.8]
[1736869416810,0.3116,3210.4,3210.2,0.31161]
[1736869417104,3.51265086,3210.3,3210.2,0.31161]
[1736869417800,3.56992265,3210.4,3210.0,44.0078]
[1736869417995,3.21296265,3210.5,3210.0,44.78687]
[1736869418196,3.21296265,3210.5,3210.4,0.31159]
[1736869418498,0.31157,3210.7,3210.4,0.31159]
[1736869418499,3.43614018,3210.6,3210.4,0.31159]
[1736869419009,3.74771018,3210.6,3210.3,0.31159]
[1736869419206,3.74771018,3210.6,3210.4,0.31159]
[1736869419409,0.31157,3210.6,3210.3,0.31159]
[1736869419706,3.38625291,3210.5,3210.3,0.31159]
[1736869419906,3.38625291,3210.5,3210.4,0.31159]
[1736869420110,3.38625291,3210.5,3210.0,44.0078]
[1736869420304,3.38625291,3210.5,3210.0,3.2078]
[1736869420504,3.24194785,3210.7,3210.1,0.31162]
[1736869420715,0.3116,3210.4,3210.1,0.31162]
[1736869421012,0.31158,3210.6,3210.4,0.31159]
[1736869421310,0.31158,3210.6,3210.3,0.31159]
[1736869421609,3.55156311,3210.5,3210.4,0.31159]
[1736869421999,3.2078,3210.8,3210.0,3.2078]
[1736869422205,3.55156311,3210.7,3210.0,3.2078]
[1736869422404,0.31157,3210.7,3210.0,3.2078]
[1736869422602,3.41716714,3210.7,3210.4,3.2078]
[1736869422902,3.41716714,3210.7,3210.6,0.31157]
[1736869423102,3.2078,3211.3,3211.2,0.31151]
[1736869423305,0.3115,3211.4,3211.2,0.31151]
[1736869423499,0.4925,3211.5,3211.4,0.31149]
[1736869423701,3.2078,3211.8,3211.6,0.31147]
[1736869423898,0.31147,3211.7,3211.4,41.11149]
[1736869424102,0.9599,3212.1,3211.6,3.28046988]
[1736869424304,0.4596,3212.1,3212.0,0.31144]
[1736869424507,0.4865,3212.2,3212.1,0.31143]
[1736869424805,0.4596,3212.5,3212.2,0.31141]
[1736869425112,3.56254566,3212.4,3212.2,0.31141]
[1736869425408,3.56254566,3212.4,3211.9,3.28046988]
[1736869425706,3.87394566,3212.4,3212.1,0.31142]
[1736869425901,3.56254566,3212.4,3211.9,3.28046988]
[1736869426110,0.31142,3212.2,3211.9,0.31144]
[1736869426306,0.31141,3212.3,3212.0,0.31144]
[1736869426506,0.31142,3212.2,3211.9,0.31144]
[1736869427512,3.66772408,3212.1,3211.8,0.31145]
[1736869428009,3.35629408,3212.3,3211.6,6.73898813]
[1736869428208,3.35629408,3212.0,3211.9,0.31144]
[1736869428510,3.25020813,3212.2,3211.6,6.73898813]
[1736869428711,0.4596,3212.5,3211.6,6.73898813]
[1736869429014,3.25020813,3212.2,3211.9,3.59190988]
[1736869429410,0.4596,3212.5,3211.9,3.28046988]
[1736869429809,3.50829135,3212.2,3211.9,3.59190988]
[1736869430009,0.31141,3212.3,3211.9,3.59190988]
[1736869430305,3.28911349,3212.2,3211.6,3.45851825]
[1736869430505,3.28911349,3212.2,3211.6,3.76998825]
[1736869430810,0.31144,3212.0,3211.6,3.76998825]
[1736869431012,0.4596,3212.5,3211.7,3.28046988]
[1736869431311,3.5622211,3212.2,3211.8,0.31146]
[1736869431704,0.31143,3212.2,3211.7,3.28046988]
[1736869431904,0.31143,3212.1,3211.7,3.28046988]
[1736869432109,0.31143,3212.1,3211.8,0.31145]
[1736869432304,3.46867273,3212.4,3212.0,0.31143]
[1736869432506,0.31141,3212.3,3211.9,0.31144]
[1736869432710,3.46867273,3212.4,3211.9,0.31144]
[1736869432711,0.31142,3212.2,3211.9,0.31144]
[1736869432907,3.46867273,3212.2,3211.7,3.28046988]
[1736869433401,0.31147,3211.7,3211.6,3.2078]
[1736869434109,2.70549002,3212.0,3211.2,40.8]
[1736869434312,0.5013,3211.6,3211.1,3.2078]
[1736869434506,0.31151,3211.2,3211.1,3.2078]
[1736869434713,0.31153,3211.0,3210.9,2.70549002]
[1736869434924,0.31156,3210.7,3210.6,3.2078]
[1736869435118,0.31154,3210.9,3210.5,0.01152]
[1736869435309,3.08545652,3210.7,3210.6,43.50549002]
[1736869435508,0.31155,3210.9,3210.6,43.50549002]
[1736869435509,0.16271232,3210.8,3210.6,43.81706002]
[1736869435713,0.77879,3211.3,3210.6,43.50549002]
[1736869435913,0.31156,3210.8,3210.6,46.71329002]
[1736869436111,3.75568839,3210.8,3210.6,44.0078]
[1736869436409,0.31156,3210.8,3210.6,44.0078]
[1736869436716,3.56232456,3210.7,3210.6,44.0078]
[1736869436918,3.56232456,3210.7,3210.6,47.02486002]
[1736869437311,3.56232456,3210.7,3210.6,44.31937]
[1736869437505,0.3115,3211.3,3210.7,0.31155]
[1736869437710,0.31153,3211.1,3210.7,0.31156]
[1736869437912,0.31155,3210.9,3210.6,44.31937]
[1736869438113,3.35924984,3211.0,3210.6,44.31937]
[1736869438314,3.35924984,3210.8,3210.6,44.0078]
[1736869438611,0.31154,3211.0,3210.7,0.31156]
[1736869438911,3.50607181,3210.9,3210.6,44.0078]
[1736869439117,3.50607181,3210.9,3210.7,0.31156]
[1736869439311,3.81760181,3211.1,3210.8,0.31155]
[1736869439515,3.6648,3211.4,3210.6,44.0078]
[1736869439712,3.6648,3211.4,3210.8,0.31155]
[1736869439908,0.31152,3211.1,3210.8,0.31155]
[1736869440116,3.54105179,3211.3,3210.6,44.0078]
[1736869440308,3.54105179,3211.3,3210.8,0.31154]
[1736869440509,3.85256179,3211.3,3211.0,0.31153]
[1736869441012,3.6648,3211.4,3210.8,3.27969132]
[1736869441013,3.2078,3211.4,3211.2,0.31151]
[1736869441218,3.2078,3211.4,3211.3,0.3115]
[1736869441524,0.31147,3211.7,3211.4,0.31149]
[1736869441714,0.31148,3211.6,3211.5,40.8]
[1736869441910,0.31153,3211.0,3210.9,3.2078]
[1736869442222,0.4858,3211.5,3210.8,3.51935]
[1736869442512,3.53584921,3211.0,3210.8,44.0078]
[1736869442718,0.31152,3211.2,3210.8,47.28749132]
[1736869442918,0.31153,3211.1,3210.8,44.0078]
[1736869443118,0.31154,3210.9,3210.8,44.0078]
[1736869443318,0.31154,3210.9,3210.8,40.8]
[1736869443525,3.32291785,3210.9,3210.5,0.01152]
[1736869443924,0.31157,3210.6,3210.5,40.81152]
[1736869444116,3.32291785,3210.9,3210.5,40.81152]
[1736869444319,3.40087427,3210.6,3210.5,40.81152]
[1736869444623,0.31157,3210.7,3210.5,40.81152]
[1736869444825,3.73910811,3210.6,3210.5,40.81152]
[1736869445125,3.42753811,3210.8,3210.5,3.29121132]
[1736869445621,0.80394,3211.0,3210.6,41.11157]
[1736869445824,3.35158423,3210.7,3210.6,41.11157]
[1736869446024,3.35158423,3210.8,3210.6,41.11156]
[1736869446326,0.31155,3210.9,3210.6,41.11157]
[1736869446617,0.4924,3211.0,3210.8,3.2078]
[1736869446825,0.4742,3211.4,3210.8,3.2078]
[1736869446826,0.31151,3211.3,3211.0,0.31153]
[1736869447019,0.472,3211.4,3211.2,3.2078]
[1736869447211,0.472,3211.9,3211.8,0.31146]
[1736869447418,3.98627,3212.6,3211.3,4.05846132]
[1736869447419,0.4929,3212.4,3211.9,0.31144]
[1736869447614,3.6147603,3212.0,3211.9,0.31144]
[1736869447931,0.4929,3212.4,3211.7,6.48749132]
[1736869447932,3.2889301,3212.3,3211.7,3.2078]
[1736869448227,0.31146,3211.8,3211.7,3.2078]
[1736869448728,3.76794586,3211.8,3211.7,3.2078]
[1736869449224,0.31145,3211.9,3211.7,3.2078]
[1736869449525,3.41513928,3211.8,3211.7,3.2078]
[1736869449723,0.31145,3211.9,3211.7,3.2078]
[1736869450224,3.72659928,3211.8,3211.7,3.2078]
[1736869450423,3.41513928,3211.8,3211.7,3.2078]
[1736869450726,0.31146,3211.8,3211.7,3.2078]
[1736869451026,3.60516889,3211.8,3211.7,3.2078]
[1736869451228,3.60843358,3211.8,3211.7,3.2078]
[1736869451422,0.00326469,3211.8,3211.7,3.51927]
[1736869453124,0.472,3212.5,3212.0,3.27969132]
[1736869453330,0.3114,3212.4,3212.0,0.31143]
[1736869453826,0.472,3212.5,3211.8,0.4603]
[1736869454025,0.78339,3212.5,3212.1,0.31142]
[1736869454920,0.472,3212.5,3212.0,3.27969132]
[1736869455126,0.7834,3212.5,3212.1,3.51922]
[1736869455426,0.78339,3212.5,3212.1,3.51922]
[1736869455624,0.472,3212.5,3212.4,0.3114]
[1736869455930,0.4735,3212.7,3212.2,0.31141]
[1736869456430,0.78487,3212.7,3212.3,3.59109132]
[1736869456731,0.78487,3212.7,3212.1,3.2078]
[1736869456732,3.45327223,3212.6,3212.1,3.2078]
[1736869456933,0.3114,3212.4,3212.1,3.2078]
[1736869457527,0.3114,3212.5,3212.1,3.2078]
[1736869457736,0.3114,3212.4,3212.1,3.2078]
[1736869457933,3.55657633,3212.4,3212.1,3.2078]
[1736869458130,3.24517633,3212.4,3212.1,3.2078]
[1736869458328,0.4735,3212.7,3212.1,3.2078]
[1736869458632,3.41496537,3212.6,3212.1,3.2078]
[1736869458834,3.41496537,3212.6,3212.1,3.51923]
[1736869458835,0.31139,3212.5,3212.1,3.51923]
[1736869459221,3.41496537,3212.4,3212.1,3.51923]
[1736869459427,3.41496537,3212.4,3212.1,3.51922]
[1736869459723,0.4735,3212.7,3212.1,3.2078]
[1736869460034,0.81046,3212.8,3212.3,0.3114]
[1736869460234,0.31137,3212.7,3212.3,0.3114]
[1736869460627,0.31139,3212.5,3212.2,0.31141]
[1736869461031,3.47122319,3212.7,3212.2,0.31141]
[1736869461337,0.31138,3212.6,3212.1,3.98142]
[1736869461733,0.31139,3212.6,3212.2,0.31141]
[1736869462334,3.51471746,3212.7,3212.2,0.31141]
[1736869462536,3.51471746,3212.7,3212.3,3.27969132]
[1736869462732,3.51471746,3212.7,3212.1,3.2078]
[1736869462934,0.31141,3212.3,3212.1,3.2078]
[1736869463138,0.3114,3212.4,3212.1,3.51922]
[1736869463336,0.31138,3212.6,3212.3,0.31141]
[1736869463525,3.51471746,3212.7,3212.1,3.2078]
[1736869463730,0.31138,3212.6,3212.3,0.3114]
[1736869463930,3.82608746,3212.7,3212.3,0.3114]
[1736869464337,0.31138,3212.6,3212.3,0.3114]
[1736869464725,0.31138,3212.6,3212.2,0.31141]
[1736869465144,3.82608746,3212.7,3212.4,0.31139]
[1736869465451,3.51471746,3212.7,3212.5,0.31139]
[1736869465651,3.51471746,3212.7,3212.4,0.3114]
[1736869465854,3.82608746,3212.7,3212.3,3.59109132]
[1736869466338,3.2078,3213.0,3212.8,0.31136]
[1736869466544,3.5191,3213.4,3212.9,3.59103132]
[1736869466849,6.52211351,3213.4,3213.0,41.11133]
[1736869467044,6.52211351,3213.4,3213.2,3.27969132]
[1736869467246,4.1554,3213.8,3213.2,3.27969132]
[1736869467546,4.1554,3213.8,3213.6,2.70147909]
[1736869467745,0.9476,3213.8,3213.6,2.70147909]
[1736869469356,0.9476,3213.8,3213.5,0.31129]
[1736869469545,0.9476,3213.8,3213.4,6.48149081]
[1736869470054,1.25886,3213.8,3213.4,6.48149081]
[1736869470252,1.25886,3213.8,3213.5,0.31129]
[1736869470444,0.9476,3213.8,3213.5,0.31129]
[1736869470645,1.25886,3213.8,3213.4,6.79278081]
[1736869470845,0.9476,3213.8,3213.5,0.31128]
[1736869471652,0.4674,3213.8,3213.6,0.31128]
[1736869471952,0.31125,3214.0,3213.5,0.31129]
[1736869472153,3.2078,3214.2,3213.4,6.48149081]
[1736869472352,3.59109151,3213.8,3213.4,6.48149081]
[1736869472550,0.31129,3213.5,3213.4,3.2078]
[1736869472751,0.31132,3213.3,3213.0,3.2078]
[1736869473156,0.3113,3213.4,3213.0,3.2078]
[1736869473653,0.31131,3213.4,3213.0,3.2078]
[1736869473854,4.54025245,3213.6,3213.0,3.2078]
[1736869474061,0.31129,3213.5,3213.0,3.2078]
[1736869474355,0.3113,3213.4,3213.0,3.51913]
[1736869474558,3.66985543,3213.4,3213.0,3.51913]
[1736869474960,0.9591,3213.6,3213.0,3.2078]
[1736869475253,3.35855543,3213.5,3213.0,3.2078]
[1736869475453,0.31133,3213.1,3213.0,3.2078]
[1736869475655,0.31133,3213.1,3212.8,0.31136]
[1736869475951,3.35855543,3213.5,3212.9,3.58503081]
[1736869476356,0.31131,3213.3,3212.9,3.27369081]
[1736869476552,0.31132,3213.2,3213.0,3.2078]
[1736869476753,3.35855543,3213.5,3213.0,3.51914]
[1736869477055,0.31131,3213.3,3213.0,3.2078]
[1736869477257,0.31132,3213.3,3213.0,3.2078]
[1736869477449,3.35855543,3213.5,3213.0,3.2078]
[1736869477654,0.31132,3213.2,3213.0,3.2078]
[1736869478056,3.35855543,3213.5,3213.0,3.2078]
[1736869478259,0.31132,3213.2,3213.0,3.2078]
[1736869478457,3.35855543,3213.5,3213.0,3.2078]
[1736869478753,0.31133,3213.2,3213.0,3.2078]
[1736869478958,0.31134,3213.1,3212.7,41.36119941]
[1736869479153,0.31134,3213.0,3212.7,41.36120941]
[1736869479352,0.31133,3213.1,3212.7,41.04983941]
[1736869479653,3.29964178,3213.3,3212.8,0.31135]
[1736869479858,0.31132,3213.2,3212.9,3.27369081]
[1736869480861,1.73732,3213.6,3212.7,41.04983941]
[1736869481066,0.77824,3213.5,3212.7,41.04983941]
[1736869481362,0.31134,3213.1,3212.7,41.36119941]
[1736869481561,3.2078,3213.3,3212.7,41.04983941]
[1736869481856,3.2078,3213.3,3212.1,0.79174]
[1736869481857,0.31138,3212.7,3212.3,3.27369081]
[1736869482063,0.31135,3212.9,3212.6,3.27369081]
[1736869482361,0.31135,3212.9,3212.6,3.58506081]
[1736869482562,3.2078,3213.3,3212.6,3.27369081]
[1736869482754,3.2078,3213.3,3212.2,3.6661]
[1736869482755,3.51912,3213.3,3213.0,0.31134]
[1736869482951,3.57073218,3213.2,3212.9,3.27369081]
[1736869483152,0.9591,3213.6,3212.9,3.27369081]
[1736869483357,0.31129,3213.5,3213.2,3.58501081]
[1736869483660,3.42066224,3213.5,3213.2,3.27369081]
[1736869483858,3.73196224,3213.5,3213.2,3.58501081]
[1736869484459,3.42066224,3213.5,3213.2,3.27369081]
[1736869484659,0.3113,3213.4,3213.2,3.27369081]
[1736869485062,0.3113,3213.4,3213.2,3.58501081]
[1736869485365,0.31131,3213.3,3213.2,3.27369081]
[1736869485554,0.31131,3213.3,3213.1,0.31133]
[1736869485871,3.42066224,3213.5,3213.2,0.31132]
[1736869486357,3.42066224,3213.5,3213.3,0.31131]
[1736869486562,1.27038,3213.6,3213.3,3.2078]
[1736869486758,0.9591,3213.6,3213.4,0.3113]
[1736869486960,0.9591,3213.6,3213.3,3.2078]
[1736869486961,3.2078,3214.2,3213.5,3.27369081]
[1736869487162,0.31124,3214.1,3213.8,0.31126]
[1736869487360,3.79251712,3214.0,3213.8,0.31126]
[1736869487565,3.79251712,3214.0,3213.9,40.8]
[1736869487962,3.48127712,3214.0,3213.7,0.31127]
[1736869488160,0.31126,3213.9,3213.5,3.27369081]
[1736869488362,0.31124,3214.0,3213.9,0.31125]
[1736869488566,0.31124,3214.0,3213.9,41.11125]
[1736869489273,4.1643,3214.2,3213.9,40.8]
[1736869489564,4.47552,3214.2,3214.1,3.01229177]
[1736869489765,3.2078,3214.2,3214.1,3.01229177]
[1736869491573,3.6935,3214.6,3213.9,40.8]
[1736869491765,6.54533188,3214.2,3213.7,3.2078]
[1736869491960,6.54533188,3214.2,3213.5,2.70106177]
[1736869491961,0.31126,3213.8,3213.5,2.70106177]
[1736869492161,0.4556,3214.1,3213.5,2.70106177]
[1736869492371,0.4887,3214.0,3213.6,0.31127]
[1736869492573,0.31127,3213.8,3213.6,0.31127]
[1736869493159,0.31127,3213.8,3213.6,0.31128]
[1736869493373,0.31127,3213.8,3213.5,2.70106177]
[1736869493573,4.36059468,3213.9,3213.6,0.31128]
[1736869493763,4.04933468,3213.9,3213.6,0.31128]
[1736869493962,4.36059468,3213.9,3213.5,2.70106177]
[1736869494170,4.04933468,3213.9,3213.6,0.31128]
[1736869494369,0.31126,3213.8,3213.5,3.01235177]
[1736869494571,0.31121,3214.4,3213.8,0.31126]
[1736869494768,0.4533,3214.5,3214.3,0.31121]
[1736869494966,3.26247364,3214.5,3214.2,2.70106177]
[1736869495173,0.5002,3214.7,3214.4,0.3112]
[1736869495369,0.31118,3214.6,3214.3,0.31121]
[1736869495570,0.31118,3214.6,3214.1,3.2078]
[1736869495571,0.31122,3214.3,3214.1,3.2078]
[1736869495767,0.31121,3214.4,3214.1,3.51903]
[1736869495972,0.7716,3214.5,3214.1,3.2078]
[1736869496166,3.53825675,3214.3,3214.1,3.51903]
[1736869496369,3.53825675,3214.4,3214.2,2.70106177]
[1736869496671,0.4604,3214.5,3214.3,0.3112]
[1736869497273,0.5002,3214.7,3214.2,2.70106177]
[1736869497664,3.90967819,3214.6,3214.2,2.70106177]
[1736869497864,0.3112,3214.5,3214.3,41.11121]
[1736869498068,3.90967819,3214.6,3214.4,0.3112]
[1736869498871,3.59848819,3214.6,3214.3,40.8]
[1736869499174,0.31119,3214.5,3214.4,0.3112]
[1736869499475,0.3112,3214.4,3214.3,41.11121]
[1736869499772,0.31122,3214.3,3214.1,3.2078]
[1736869499970,0.31122,3214.2,3214.1,3.2078]
[1736869500171,3.3098533,3214.2,3214.1,3.2078]
[1736869500374,3.3098533,3214.2,3213.9,2.70106177]
[1736869500578,3.3098533,3214.2,3213.7,3.2078]
[1736869500579,0.31126,3213.8,3213.7,3.2078]
[1736869500776,0.3113,3213.5,3213.3,3.2078]
[1736869500977,0.4975,3213.7,3213.1,2.70106177]
[1736869501273,0.31132,3213.2,3213.1,2.70106177]
[1736869501475,0.31134,3213.0,3212.9,3.2078]
[1736869501674,3.2078,3213.0,3212.3,8.01305604]
[1736869501976,0.485,3212.9,3212.3,3.2078]
[1736869502176,0.9825,3212.9,3212.3,3.2078]
[1736869502371,0.3114,3212.4,3212.3,3.2078]
[1736869502768,3.33467794,3212.4,3212.2,40.8]
[1736869502968,0.31144,3212.0,3211.8,6.48419018]
[1736869503173,3.82977794,3212.5,3211.8,6.48419018]
[1736869503370,0.4951,3212.5,3211.9,40.8]
[1736869503769,3.25741946,3212.4,3212.3,0.3114]
[1736869503968,3.2078,3213.2,3212.2,3.2078]
[1736869504277,3.2078,3213.2,3212.8,3.27639018]
[1736869504479,3.25741946,3213.1,3212.3,3.7009]
[1736869504667,0.31134,3213.0,3212.5,0.31138]